bitfinex/quotes_BTCUSD_20211001
["timestamp","ask_amount","ask_price","bid_price","bid_amount"]
[1633082280305,0.2232,44928.0,44927.0,0.23442755]
[1633082280704,0.43870362,44928.0,44927.0,0.24642755]
[1633082280899,0.2412,44928.0,44927.0,0.24642755]
[1633082281099,0.018,44928.0,44927.0,0.24642755]
[1633082281500,0.018,44928.0,44927.0,0.79642755]
[1633082281801,0.026,44928.0,44927.0,0.80742755]
[1633082281999,0.026,44928.0,44927.0,0.90742755]
[1633082282200,0.3006,44930.0,44927.0,0.88442755]
[1633082282401,0.3006,44930.0,44928.0,0.1]
[1633082283199,0.00122068,44929.0,44928.0,0.1]
[1633082283401,0.00122068,44929.0,44927.0,0.56830655]
[1633082283599,0.00122068,44929.0,44927.0,0.22616006]
[1633082283799,0.28682068,44930.0,44928.0,0.3]
[1633082284199,0.00121201,44929.0,44928.0,0.3]
[1633082285209,0.00121201,44929.0,44928.0,0.30632257]
[1633082285405,0.00121201,44929.0,44928.0,0.00632257]
[1633082285605,0.0006,44930.0,44928.0,1.20632257]
[1633082285803,0.0006,44930.0,44928.0,0.34019557]
[1633082286002,0.0006,44930.0,44928.0,0.00632257]
[1633082287607,0.00124269,44929.0,44928.0,0.00632257]
[1633082287809,0.22444269,44929.0,44928.0,0.01532257]
[1633082288117,0.22444269,44929.0,44922.0,0.15981159]
[1633082288118,0.40035796,44927.0,44922.0,0.15981159]
[1633082288310,0.00126393,44923.0,44922.0,0.15981159]
[1633082288706,0.21350864,44923.0,44922.0,0.15981159]
[1633082288910,1.41646879,44923.0,44922.0,0.15981159]
[1633082289105,1.97729979,44923.0,44922.0,0.15981159]
[1633082289607,1.73865669,44923.0,44922.0,0.15981159]
[1633082290626,1.7318555,44923.0,44922.0,0.15981159]
[1633082290821,1.7318555,44923.0,44922.0,0.16370407]
[1633082291423,0.222698,44918.0,44905.0,0.334037]
[1633082291622,0.00127046,44913.0,44905.0,0.334037]
[1633082291823,0.29627046,44913.0,44906.0,0.1]
[1633082292123,0.00124895,44908.0,44903.0,0.0999]
[1633082292326,0.00124895,44908.0,44903.0,0.29755122]
[1633082292523,0.52683254,44908.0,44903.0,0.29755122]
[1633082292726,0.52683254,44908.0,44903.0,0.63159922]
[1633082294327,0.00876962,44907.0,44903.0,0.29755122]
[1633082294727,0.00876962,44907.0,44903.0,0.19765122]
[1633082296128,0.52683254,44908.0,44903.0,0.19765122]
[1633082298337,0.63683254,44908.0,44903.0,0.19765122]
[1633082298936,0.63633254,44908.0,44903.0,0.19765122]
[1633082299337,0.63633254,44908.0,44903.0,0.53169922]
[1633082299738,0.63633254,44908.0,44903.0,0.19765122]
[1633082299938,0.00876962,44907.0,44903.0,0.19765122]
[1633082301743,0.63633254,44908.0,44903.0,0.19765122]
[1633082304202,0.34183254,44908.0,44903.0,0.19765122]
[1633082304402,0.34058359,44908.0,44903.0,0.19765122]
[1633082305204,0.34058359,44908.0,44903.0,0.53169722]
[1633082305403,0.00876962,44907.0,44903.0,0.53169722]
[1633082305806,0.00876962,44907.0,44903.0,0.19765122]
[1633082307205,0.34058359,44908.0,44903.0,0.19765122]
[1633082310010,0.09075857,44905.0,44901.0,0.356365]
[1633082310209,0.20147145,44904.0,44901.0,0.356365]
[1633082310410,0.20147145,44904.0,44901.0,0.0223]
[1633082311009,0.00877353,44903.0,44901.0,0.0223]
[1633082311211,0.21302881,44903.0,44901.0,0.0223]
[1633082311412,0.20300738,44902.0,44901.0,0.0223]
[1633082312014,0.2042772,44902.0,44899.0,0.0999]
[1633082312215,0.00125514,44900.0,44899.0,0.0999]
[1633082312413,0.46368692,44900.0,44899.0,0.0999]
[1633082312813,0.46368692,44900.0,44892.0,0.1118767]
[1633082313013,0.09580022,44898.0,44888.0,0.0994551]
[1633082313212,0.23393347,44897.0,44888.0,0.0994551]
[1633082313418,0.53393347,44897.0,44896.0,0.21310404]
[1633082313613,0.76076047,44897.0,44896.0,0.21310404]
[1633082314217,0.98355247,44897.0,44896.0,0.21310404]
[1633082314819,0.98355247,44897.0,44888.0,0.09412681]
[1633082315019,0.75672547,44897.0,44896.0,2.40913225]
[1633082316218,0.53393347,44897.0,44896.0,4.44996824]
[1633082316419,0.54271484,44897.0,44896.0,4.44996824]
[1633082316622,0.54271484,44897.0,44896.0,2.04083599]
[1633082316818,0.30878137,44897.0,44896.0,2.04083599]
[1633082317018,0.50496306,44897.0,44896.0,2.04083599]
[1633082317219,0.30878137,44897.0,44896.0,2.04083599]
[1633082317418,0.50970107,44897.0,44896.0,2.04083599]
[1633082318218,0.5009197,44897.0,44896.0,2.04083599]
[1633082318820,0.5009197,44897.0,44896.0,2.04133599]
[1633082319121,0.4981697,44897.0,44896.0,2.04133599]
[1633082319319,0.6081697,44897.0,44896.0,2.04133599]
[1633082320918,0.6081697,44897.0,44896.0,0.0005]
[1633082322119,0.61695107,44897.0,44896.0,0.0005]
[1633082323521,0.84377807,44897.0,44896.0,0.0005]
[1633082323723,0.824742,44897.0,44896.0,0.0005]
[1633082323924,0.634077,44897.0,44896.0,0.0005]
[1633082324122,0.336827,44897.0,44896.0,0.0005]
[1633082324324,0.636827,44897.0,44896.0,0.0005]
[1633082324524,0.336827,44897.0,44896.0,0.0005]
[1633082324723,0.11,44897.0,44896.0,0.0005]
[1633082325726,0.11,44897.0,44896.0,0.08738437]
[1633082326322,0.11,44897.0,44896.0,0.3327373]
[1633082327124,0.11,44897.0,44896.0,0.48738437]
[1633082327327,0.11,44897.0,44896.0,0.08738437]
[1633082327523,0.11878137,44897.0,44896.0,0.08738437]
[1633082327924,0.11878137,44897.0,44896.0,0.0005]
[1633082329125,0.11,44897.0,44896.0,0.0005]
[1633082330024,0.11,44897.0,44896.0,0.5505]
[1633082331024,0.11,44897.0,44896.0,0.0005]
[1633082333027,0.11878137,44897.0,44896.0,0.3505]
[1633082333426,0.10690324,44897.0,44896.0,0.3505]
[1633082334027,0.10690324,44897.0,44896.0,0.3615]
[1633082334627,0.09812187,44897.0,44896.0,0.3615]
[1633082334830,0.09812187,44897.0,44896.0,0.8615]
[1633082335027,0.09812187,44897.0,44896.0,1.0115]
[1633082335428,0.09812187,44897.0,44896.0,0.9115]
[1633082335630,0.09812187,44897.0,44896.0,0.5615]
[1633082335828,0.09812187,44897.0,44896.0,0.5505]
[1633082336029,0.09812187,44897.0,44896.0,0.5625]
[1633082337432,0.09812187,44897.0,44896.0,0.5505]
[1633082338029,0.09812187,44897.0,44896.0,0.5635]
[1633082338431,0.10690324,44897.0,44896.0,0.73027577]
[1633082339037,0.10690324,44897.0,44896.0,0.23027577]
[1633082339433,0.10690324,44897.0,44896.0,0.21727577]
[1633082340037,0.10690324,44897.0,44896.0,0.0005]
[1633082340236,0.28767832,44897.0,44896.0,0.0005]
[1633082340635,0.09812187,44897.0,44896.0,0.0005]
[1633082341836,0.09812187,44897.0,44896.0,0.0135]
[1633082344038,0.10690324,44897.0,44896.0,0.0135]
[1633082344238,0.10690324,44897.0,44896.0,0.0265]
[1633082344840,0.10690324,44897.0,44896.0,0.0135]
[1633082345246,0.12690324,44897.0,44896.0,0.0135]
[1633082345642,0.11812187,44897.0,44896.0,0.0135]
[1633082346445,0.11812187,44897.0,44896.0,0.0005]
[1633082347053,0.11812187,44897.0,44896.0,0.064898]
[1633082347242,0.11812187,44897.0,44896.0,0.180376]
[1633082347508,0.11812187,44897.0,44896.0,0.0135]
[1633082347845,0.11812187,44897.0,44896.0,0.06489977]
[1633082348043,0.11812187,44897.0,44896.0,0.1673816]
[1633082348243,0.11812187,44897.0,44896.0,0.1673813]
[1633082348443,0.11812187,44897.0,44896.0,0.0005]
[1633082348642,0.11812187,44897.0,44896.0,0.0135]
[1633082349043,0.11812187,44897.0,44896.0,0.0005]
[1633082349444,0.12924908,44897.0,44896.0,0.0005]
[1633082349845,0.12924908,44897.0,44896.0,0.06490714]
[1633082350052,0.12924908,44897.0,44896.0,0.16725428]
[1633082350516,0.12924908,44897.0,44896.0,0.0005]
[1633082351245,0.11812187,44897.0,44896.0,0.06491184]
[1633082351444,0.11812187,44897.0,44896.0,0.16726541]
[1633082352246,0.11812187,44897.0,44896.0,0.0005]
[1633082352448,0.11812187,44897.0,44896.0,0.06491318]
[1633082352647,0.11812187,44897.0,44896.0,0.16718084]
[1633082352849,0.11812187,44897.0,44896.0,0.18018084]
[1633082353054,0.30657346,44897.0,44896.0,0.0135]
[1633082353506,0.11812187,44897.0,44896.0,0.0135]
[1633082354451,0.11812187,44897.0,44896.0,0.18118949]
[1633082354848,0.11812187,44897.0,44896.0,0.0135]
[1633082355049,0.12924908,44897.0,44896.0,0.07791525]
[1633082355248,0.12924908,44897.0,44896.0,0.18118578]
[1633082355651,0.12924908,44897.0,44896.0,0.19418578]
[1633082355849,0.12924908,44897.0,44896.0,0.18118578]
[1633082356652,0.11812187,44897.0,44896.0,0.18118578]
[1633082356855,0.11937408,44897.0,44896.0,0.18118578]
[1633082357051,0.11937408,44897.0,44896.0,0.16818578]
[1633082357252,0.30940303,44897.0,44896.0,0.16818578]
[1633082357651,0.30815082,44897.0,44896.0,0.16818578]
[1633082357853,0.11812187,44897.0,44896.0,0.18118578]
[1633082358253,0.11812187,44897.0,44896.0,0.16818578]
[1633082359253,0.11812187,44897.0,44896.0,0.18118578]
[1633082360455,0.12924908,44897.0,44896.0,0.18118578]
[1633082360655,0.12924908,44897.0,44896.0,0.16818578]
[1633082361055,0.12924908,44897.0,44896.0,0.16418578]
[1633082361455,0.12924908,44897.0,44896.0,0.17618578]
[1633082362257,0.11812187,44897.0,44896.0,0.17618578]
[1633082365658,0.11812187,44897.0,44896.0,0.11527053]
[1633082366061,0.12924908,44897.0,44896.0,0.11527053]
[1633082367663,0.11812187,44897.0,44896.0,0.11527053]
[1633082369568,0.11812187,44897.0,44896.0,0.51527053]
[1633082370567,0.11812187,44897.0,44896.0,0.52727053]
[1633082371171,0.11812187,44897.0,44896.0,0.50327053]
[1633082371569,0.12924908,44897.0,44896.0,0.50327053]
[1633082371968,0.12924908,44897.0,44896.0,0.6921312]
[1633082372571,0.12924908,44897.0,44896.0,0.7021312]
[1633082373170,0.11812187,44897.0,44896.0,0.7021312]
[1633082374646,0.11812187,44897.0,44896.0,1.0021312]
[1633082375844,0.11812187,44897.0,44896.0,1.0121312]
[1633082376044,0.11812187,44897.0,44896.0,1.0021312]
[1633082376244,0.11812187,44897.0,44896.0,0.9921312]
[1633082376447,0.11812187,44897.0,44896.0,1.08316518]
[1633082377046,0.1273223,44897.0,44896.0,1.08316518]
[1633082377247,0.1273223,44897.0,44896.0,0.78316518]
[1633082377649,0.1273223,44897.0,44896.0,0.2921312]
[1633082377847,0.1273223,44897.0,44896.0,0.3041312]
[1633082378446,0.1273223,44897.0,44896.0,0.6041312]
[1633082378647,0.11619509,44897.0,44896.0,0.6041312]
[1633082379049,0.11619509,44897.0,44896.0,0.5921312]
[1633082379249,0.11619509,44897.0,44896.0,0.2921312]
[1633082379451,0.11619509,44897.0,44896.0,0.6421312]
[1633082381450,0.11619509,44897.0,44896.0,0.87098263]
[1633082381657,0.11619509,44897.0,44896.0,0.7421312]
[1633082382453,0.1273223,44897.0,44896.0,0.4041312]
[1633082383452,0.1273223,44897.0,44896.0,0.3041312]
[1633082384052,0.1273223,44897.0,44896.0,0.4541312]
[1633082384254,0.1273223,44897.0,44896.0,0.3041312]
[1633082384255,0.11619509,44897.0,44896.0,0.3041312]
[1633082384451,0.11619509,44897.0,44896.0,0.8041312]
[1633082385853,0.11619509,44897.0,44896.0,0.2921312]
[1633082386451,0.11619509,44897.0,44896.0,0.7921312]
[1633082386855,0.11619509,44897.0,44896.0,0.8041312]
[1633082387656,0.8636,44913.0,44897.0,1.66959056]
[1633082387855,0.8636,44913.0,44904.0,0.00124552]
[1633082388057,2.7622,44915.0,44910.0,0.00120591]
[1633082388254,0.222722,44916.0,44911.0,0.02162795]
[1633082388455,0.334046,44914.0,44911.0,0.02162795]
[1633082388658,0.334046,44914.0,44911.0,0.25221548]
[1633082388853,0.334046,44914.0,44912.0,0.2147528]
[1633082389062,0.334046,44914.0,44913.0,0.0223]
[1633082389457,0.222722,44916.0,44913.0,0.23576522]
[1633082389855,0.11,44914.0,44913.0,0.23576522]
[1633082390354,0.11,44914.0,44913.0,0.63576522]
[1633082390754,0.11,44914.0,44913.0,0.64176522]
[1633082391156,0.11,44914.0,44913.0,0.24176522]
[1633082391359,0.11,44914.0,44913.0,0.0283]
[1633082391656,0.11,44914.0,44913.0,0.24157657]
[1633082392256,0.11,44914.0,44913.0,0.59157657]
[1633082392457,0.11,44914.0,44913.0,0.58557657]
[1633082392656,0.11,44914.0,44913.0,0.59357657]
[1633082393058,0.11,44914.0,44913.0,0.23557657]
[1633082393256,0.11,44914.0,44913.0,0.63610667]
[1633082393457,0.12110412,44914.0,44913.0,0.63610667]
[1633082393658,0.12110412,44914.0,44913.0,0.23610667]
[1633082394257,0.12110412,44914.0,44913.0,0.53610667]
[1633082394457,0.12110412,44914.0,44913.0,0.54310667]
[1633082394659,0.12110412,44914.0,44913.0,0.24257657]
[1633082394858,0.11,44914.0,44913.0,0.24257657]
[1633082395859,0.11,44914.0,44913.0,0.23557657]
[1633082396259,0.11,44914.0,44913.0,0.58557657]
[1633082396857,0.11,44914.0,44913.0,0.59257657]
[1633082397261,0.11,44914.0,44913.0,0.57655057]
[1633082398462,0.11,44914.0,44913.0,0.24257657]
[1633082400664,0.11,44914.0,44913.0,0.74257657]
[1633082401373,0.11,44914.0,44913.0,1.74432511]
[1633082401374,0.08410799,44914.0,44913.0,1.74432511]
[1633082401567,0.08410799,44914.0,44913.0,1.90072511]
[1633082401969,0.08410799,44914.0,44913.0,3.08172511]
[1633082402167,0.1,44924.0,44914.0,1.35]
[1633082402370,0.1,44924.0,44923.0,1.15120106]
[1633082402570,0.1,44924.0,44923.0,1.88043116]
[1633082402770,0.1,44924.0,44923.0,1.87990106]
[1633082403169,0.1,44924.0,44923.0,2.12854778]
[1633082403368,0.1,44924.0,44923.0,2.20467748]
[1633082403570,0.1,44924.0,44923.0,2.75706605]
[1633082403768,0.1,44924.0,44923.0,2.75829784]
[1633082403969,0.1,44924.0,44923.0,3.93929784]
[1633082404373,0.1,44924.0,44923.0,4.19929784]
[1633082404669,0.1,44924.0,44923.0,4.20054701]
[1633082405272,0.1,44924.0,44923.0,3.01954701]
[1633082405470,0.1,44924.0,44923.0,2.86829784]
[1633082405869,0.1,44924.0,44923.0,2.85829784]
[1633082406070,0.1,44924.0,44923.0,2.75829784]
[1633082406469,0.1,44924.0,44923.0,2.77029784]
[1633082407872,0.1,44924.0,44923.0,2.75829784]
[1633082408472,0.1,44924.0,44923.0,2.76776774]
[1633082409672,0.1,44924.0,44923.0,2.75776774]
[1633082409871,0.1,44924.0,44923.0,2.75829784]
[1633082410076,0.1,44924.0,44923.0,2.75776774]
[1633082410274,0.1,44924.0,44923.0,3.93929784]
[1633082410470,0.1,44924.0,44923.0,3.95129784]
[1633082410671,0.21,44924.0,44923.0,3.95129784]
[1633082411073,0.21,44924.0,44923.0,4.20129784]
[1633082411671,0.21,44924.0,44923.0,4.53604159]
[1633082411871,0.21,44924.0,44923.0,4.52404159]
[1633082412071,0.21,44924.0,44923.0,4.52351149]
[1633082412272,0.21,44924.0,44923.0,4.03351149]
[1633082412474,0.21,44924.0,44923.0,4.04551149]
[1633082413270,0.21,44924.0,44923.0,4.42911769]
[1633082413672,0.21,44924.0,44923.0,4.42858759]
[1633082413873,0.21,44924.0,44923.0,4.41658759]
[1633082414473,0.21,44924.0,44923.0,4.52958759]
[1633082415878,0.21,44924.0,44923.0,4.76958759]
[1633082416077,0.10035796,44927.0,44923.0,4.77135385]
[1633082416277,0.10035796,44927.0,44926.0,2.40769039]
[1633082416536,0.10035796,44927.0,44926.0,2.53052049]
[1633082416678,0.10035796,44927.0,44926.0,4.11152049]
[1633082417077,0.10035796,44927.0,44926.0,2.93052049]
[1633082417676,0.10035796,44927.0,44926.0,4.11099039]
[1633082417881,0.10035796,44927.0,44926.0,4.11152049]
[1633082418077,0.09985796,44927.0,44926.0,4.11152049]
[1633082418480,0.09985796,44927.0,44926.0,4.12752049]
[1633082419281,0.0002,44930.0,44927.0,0.07498214]
[1633082419540,0.0002,44930.0,44929.0,0.55765616]
[1633082419681,0.0002,44930.0,44929.0,0.79254768]
[1633082419880,0.0002,44930.0,44929.0,2.07354768]
[1633082420391,0.0002,44931.0,44930.0,0.00128571]
[1633082420581,0.0002,44931.0,44930.0,0.84490877]
[1633082420781,0.0002,44931.0,44930.0,2.12643887]
[1633082420982,0.0001,44933.0,44930.0,3.12720873]
[1633082421182,0.0001,44933.0,44932.0,0.5564]
[1633082421383,0.0001,44933.0,44932.0,2.08381257]
[1633082421580,0.0001,44933.0,44932.0,2.28381257]
[1633082421780,0.0001,44933.0,44932.0,2.32582021]
[1633082422181,0.0001,44933.0,44932.0,2.52562021]
[1633082422583,0.0002,44938.0,44932.0,2.55362021]
[1633082422781,0.0002,44938.0,44934.0,1.05769801]
[1633082422985,0.0002,44938.0,44934.0,1.18052811]
[1633082423184,0.0002,44938.0,44934.0,2.36152811]
[1633082424583,0.0002,44938.0,44934.0,2.38552811]
[1633082425784,0.0002,44938.0,44934.0,2.53365026]
[1633082426590,0.0002,44938.0,44934.0,2.55765026]
[1633082426787,0.01751088,44935.0,44934.0,2.55765026]
[1633082427688,0.01751088,44935.0,44934.0,1.30399801]
[1633082427887,0.01751088,44935.0,44934.0,1.2787]
[1633082428758,0.01751088,44935.0,44934.0,1.3027]
[1633082429556,0.01751088,44935.0,44934.0,0.7463]
[1633082429957,0.20978284,44935.0,44934.0,0.6463]
[1633082430156,0.20978284,44935.0,44934.0,0.624]
[1633082430157,0.21047042,44935.0,44934.0,0.624]
[1633082430358,0.01751088,44935.0,44934.0,0.624]
[1633082430557,0.01751088,44935.0,44934.0,0.126]
[1633082430760,0.01751088,44935.0,44934.0,0.026]
[1633082431360,0.01751088,44935.0,44934.0,0.126]
[1633082431961,0.01751088,44935.0,44934.0,0.626]
[1633082432161,0.01751088,44935.0,44934.0,0.6]
[1633082432162,0.01361948,44935.0,44934.0,0.6]
[1633082432559,0.01361948,44935.0,44934.0,0.02]
[1633082432560,0.23681948,44935.0,44934.0,0.02]
[1633082433561,0.3002,44936.0,44935.0,0.14128052]
[1633082434367,0.3002,44936.0,44935.0,0.13989641]
[1633082434368,0.0004,44936.0,44935.0,0.13989641]
[1633082434563,0.0154,44936.0,44935.0,0.15789641]
[1633082435163,0.2386,44936.0,44935.0,0.15789641]
[1633082435763,0.2236,44936.0,44935.0,0.13989641]
[1633082435964,0.0004,44936.0,44935.0,0.13989641]
[1633082436163,0.0004,44936.0,44935.0,0.23989641]
[1633082436764,0.0004,44936.0,44935.0,0.24042651]
[1633082436964,0.0004,44936.0,44935.0,0.23989641]
[1633082437565,0.0004,44936.0,44935.0,0.24393796]
[1633082437866,0.0004,44936.0,44935.0,0.26676806]
[1633082438071,0.0004,44936.0,44935.0,1.02876758]
[1633082438265,0.0154,44936.0,44935.0,1.04676758]
[1633082438468,0.0006,44940.0,44935.0,1.04676758]
[1633082438469,0.0004,44946.0,44936.0,1.35]
[1633082438665,0.0004,44946.0,44938.0,0.00129097]
[1633082438865,0.0004,44946.0,44944.0,0.22285666]
[1633082439067,0.0004,44946.0,44945.0,0.0223]
[1633082439468,0.0004,44946.0,44945.0,0.1223]
[1633082439867,0.0004,44946.0,44944.0,0.4258443]
[1633082440067,0.0004,44946.0,44945.0,0.0223]
[1633082441072,0.0004,44946.0,44945.0,0.23784736]
[1633082443073,0.0004,44946.0,44945.0,0.24190062]
[1633082443474,0.0004,44946.0,44945.0,0.02635326]
[1633082444473,0.0004,44946.0,44945.0,0.03724325]
[1633082444872,0.1,44950.0,44946.0,0.5]
[1633082445073,0.1,44950.0,44947.0,0.21686351]
[1633082445273,0.1,44950.0,44947.0,0.11679111]
[1633082445874,0.1,44950.0,44947.0,0.0222276]
[1633082446074,0.1,44950.0,44948.0,0.3337]
[1633082446280,0.1,44950.0,44949.0,0.0223]
[1633082448075,0.09871884,44950.0,44949.0,0.0223]
[1633082448677,0.09871884,44950.0,44949.0,0.02635795]
[1633082449678,0.00180942,44952.0,44949.0,0.02635795]
[1633082450377,0.00180942,44952.0,44950.0,0.333697]
[1633082450979,0.00180942,44952.0,44949.0,0.24882295]
[1633082451180,0.0012647,44951.0,44949.0,0.22652295]
[1633082451385,0.10430977,44951.0,44949.0,0.22652295]
[1633082451579,0.43809077,44951.0,44949.0,0.13753519]
[1633082451981,6.873e-05,44950.0,44949.0,0.13753519]
[1633082452381,0.00675665,44950.0,44949.0,0.13347724]
[1633082452781,0.23486321,44950.0,44949.0,0.13347724]
[1633082453182,0.00803621,44950.0,44949.0,0.13347724]
[1633082453382,0.00803621,44950.0,44948.0,0.01089283]
[1633082453582,0.22803904,44949.0,44948.0,0.01089283]
[1633082453783,0.00121204,44949.0,44948.0,0.01089283]
[1633082454183,0.00121204,44949.0,44948.0,0.01494963]
[1633082454385,0.10032881,44949.0,44948.0,0.01494963]
[1633082454584,0.55035581,44949.0,44948.0,0.01494963]
[1633082454783,0.74211346,44949.0,44948.0,0.01494963]
[1633082454986,0.51528646,44949.0,44948.0,0.01494963]
[1633082455784,0.74211346,44949.0,44948.0,0.01494963]
[1633082456187,0.51528646,44949.0,44948.0,0.01494963]
[1633082456383,0.32352881,44949.0,44948.0,0.01494963]
[1633082457788,0.32352881,44949.0,44948.0,0.01089283]
[1633082457986,0.33021884,44949.0,44948.0,0.01089283]
[1633082459588,0.32352881,44949.0,44948.0,0.01089283]
[1633082459789,0.32352881,44949.0,44948.0,0.01494965]
[1633082460588,0.35,44948.0,44940.0,0.04478565]
[1633082460789,0.00125674,44941.0,44940.0,0.04478565]
[1633082461389,0.19224,44941.0,44940.0,0.04478565]
[1633082461653,0.26583498,44941.0,44940.0,0.04478565]
[1633082462254,0.00125674,44941.0,44940.0,0.04478565]
[1633082462452,0.18945254,44941.0,44940.0,0.04478565]
[1633082462853,0.00125674,44941.0,44940.0,0.04478565]
[1633082463253,0.11125674,44941.0,44940.0,0.04478565]
[1633082463454,0.12232926,44941.0,44940.0,0.04478565]
[1633082465054,0.11125674,44941.0,44940.0,0.04478565]
[1633082466457,0.11125674,44941.0,44940.0,0.05349385]
[1633082466657,0.30472099,44941.0,44940.0,0.05349385]
[1633082467065,0.11125674,44941.0,44940.0,0.05349385]
[1633082467861,0.11125674,44941.0,44940.0,0.05049385]
[1633082468858,0.12232926,44941.0,44940.0,0.05049385]
[1633082470459,0.2732161,44934.0,44932.0,0.0223]
[1633082470663,0.23021648,44933.0,44927.0,0.07498214]
[1633082470860,0.23021648,44933.0,44929.0,0.222587]
[1633082471461,0.10891227,44931.0,44930.0,0.2392023]
[1633082471661,0.32139857,44931.0,44930.0,0.2392023]
[1633082471862,0.54399557,44931.0,44930.0,0.2392023]
[1633082473865,0.54399557,44931.0,44929.0,0.222587]
[1633082474066,0.20169255,44930.0,44929.0,0.222587]
[1633082474266,0.21278113,44930.0,44929.0,0.222587]
[1633082475469,0.21399684,44930.0,44929.0,0.222587]
[1633082475669,0.21230707,44930.0,44929.0,0.222587]
[1633082476266,0.20121849,44930.0,44929.0,0.222587]
[1633082476665,0.41713319,44930.0,44929.0,0.222587]
[1633082477470,0.41713319,44930.0,44929.0,0.22954586]
[1633082477471,0.20121849,44930.0,44929.0,0.22954586]
[1633082478272,0.20121849,44930.0,44929.0,0.20954586]
[1633082479170,0.42804549,44930.0,44929.0,0.20954586]
[1633082479571,0.42804549,44930.0,44929.0,0.00695886]
[1633082479775,0.22804271,44930.0,44929.0,0.00695886]
[1633082479976,0.01230502,44930.0,44927.0,0.06872244]
[1633082480174,0.01230502,44930.0,44927.0,0.27863249]
[1633082480574,0.00123392,44928.0,44927.0,0.27863249]
[1633082480775,0.33516792,44928.0,44927.0,0.06872244]
[1633082481574,0.5272893,44928.0,44927.0,0.06872244]
[1633082482175,0.6372893,44928.0,44927.0,0.06872244]
[1633082485481,0.64838153,44928.0,44927.0,0.06872244]
[1633082485881,0.31444753,44928.0,44927.0,0.06872244]
[1633082486083,0.31321361,44928.0,44927.0,0.06872244]
[1633082487283,0.30212138,44928.0,44927.0,0.06872244]
[1633082487482,0.52894838,44928.0,44927.0,0.06872244]
[1633082488881,0.11,44928.0,44927.0,0.06872244]
[1633082489683,0.29487507,44928.0,44927.0,0.06872244]
[1633082489888,0.52170207,44928.0,44927.0,0.06872244]
[1633082490685,0.52170207,44928.0,44927.0,0.06372244]
[1633082490886,0.12232117,44928.0,44927.0,0.06372244]
[1633082491287,0.30582934,44928.0,44927.0,0.06372244]
[1633082492687,0.30582934,44928.0,44927.0,0.05872244]
[1633082492889,0.29473711,44928.0,44927.0,0.05872244]
[1633082494287,0.34473711,44928.0,44927.0,0.05872244]
[1633082496292,0.17232117,44928.0,44927.0,0.05872244]
[1633082496492,0.12109223,44928.0,44927.0,0.28452694]
[1633082496691,0.12109223,44928.0,44927.0,0.28505704]
[1633082496891,0.12109223,44928.0,44927.0,0.08283621]
[1633082497091,0.12109223,44928.0,44927.0,1.18283621]
[1633082497548,0.12109223,44928.0,44927.0,1.27576039]
[1633082498292,0.11,44928.0,44927.0,1.27576039]
[1633082499897,0.11,44928.0,44927.0,1.27523029]
[1633082500294,0.11,44928.0,44927.0,1.27576039]
[1633082500695,0.11,44928.0,44927.0,1.27523029]
[1633082501293,0.11,44928.0,44927.0,1.27576039]
[1633082501893,0.12109223,44928.0,44927.0,1.27576039]
[1633082502094,0.12109223,44928.0,44927.0,1.27523029]
[1633082502494,0.2732161,44934.0,44928.0,0.222617]
[1633082502694,0.2732161,44934.0,44929.0,0.0223]
[1633082503897,0.2732161,44934.0,44933.0,0.00561081]
[1633082505903,0.2732161,44934.0,44933.0,0.01118076]
[1633082506098,0.2732161,44934.0,44933.0,0.41118076]
[1633082506557,0.2732161,44934.0,44933.0,0.01118076]
[1633082507299,0.27875345,44934.0,44933.0,0.00556995]
[1633082508100,0.66393072,44941.0,44936.0,0.222567]
[1633082508299,0.06433061,44945.0,44940.0,0.19206247]
[1633082508504,1.0336,44947.0,44946.0,1.22837973]
[1633082508704,0.0002,44954.0,44946.0,0.00129849]
[1633082508900,0.0002,44954.0,44947.0,0.0228301]
[1633082509099,0.09675519,44953.0,44948.0,0.47029732]
[1633082509299,0.09675519,44953.0,44950.0,0.19389764]
[1633082509565,0.14113409,44948.0,44946.0,0.00129849]
[1633082509702,0.14113409,44948.0,44936.0,0.09169194]
[1633082509703,0.226827,44947.0,44936.0,0.09169194]
[1633082509901,0.21179671,44946.0,44933.0,0.02786995]
[1633082510102,0.21179671,44946.0,44934.0,0.09602436]
[1633082510503,0.22428034,44943.0,44935.0,0.3113215]
[1633082510701,0.41152632,44943.0,44936.0,0.10273773]
[1633082511103,0.18724598,44943.0,44938.0,0.222551]
[1633082511303,0.08358118,44944.0,44938.0,0.222551]
[1633082511502,0.2695809,44944.0,44939.0,0.00120245]
[1633082512102,0.19090033,44943.0,44939.0,0.00120245]
[1633082512903,0.00695748,44942.0,44939.0,0.00120245]
[1633082514904,0.52475833,44943.0,44940.0,0.00418887]
[1633082515104,0.226739,44942.0,44940.0,0.00418887]
[1633082515305,0.35375568,44948.0,44947.0,1.70994475]
[1633082515575,0.223133,44956.0,44953.0,0.67276228]
[1633082515576,0.0002,44954.0,44953.0,0.67276228]
[1633082515707,0.0002,44954.0,44953.0,0.64550247]
[1633082515906,0.0002,44954.0,44953.0,0.74603257]
[1633082516110,0.0004,44962.0,44954.0,0.676705]
[1633082516313,0.0004,44962.0,44959.0,0.0888002]
[1633082516507,0.0004,44962.0,44960.0,0.47129906]
[1633082516706,0.0004,44962.0,44961.0,0.21501833]
[1633082516906,0.0004,44962.0,44961.0,0.46458843]
[1633082517106,0.0004,44965.0,44961.0,0.46405833]
[1633082517107,0.00080925,44964.0,44961.0,0.46405833]
[1633082517305,0.0006,44967.0,44962.0,0.604809]
[1633082517508,0.0006,44967.0,44963.0,0.25495666]
[1633082517710,0.0006,44967.0,44964.0,0.22615916]
[1633082518306,0.00692172,44966.0,44964.0,0.22615916]
[1633082518569,0.00692172,44966.0,44965.0,0.22674]
[1633082519905,0.00692172,44966.0,44965.0,0.16234115]
[1633082520105,0.00692172,44966.0,44965.0,0.38067933]
[1633082520305,0.0006,44968.0,44965.0,0.38067933]
[1633082520505,0.0006,44968.0,44965.0,0.16656032]
[1633082521106,0.1202,44969.0,44965.0,0.16656032]
[1633082521309,0.1202,44969.0,44968.0,1.05129414]
[1633082521567,0.1202,44969.0,44968.0,1.07837814]
[1633082521708,0.0004,44970.0,44968.0,0.02837814]
[1633082521907,0.0004,44970.0,44969.0,0.162333]
[1633082522108,0.0004,44970.0,44969.0,0.184633]
[1633082522907,0.0004,44970.0,44969.0,0.40083093]
[1633082523106,0.0004,44970.0,44969.0,0.19022808]
[1633082524108,0.11731589,44970.0,44969.0,0.19022808]
[1633082524307,0.11740606,44970.0,44969.0,0.19022808]